bitfinex/quotes_ETHUSD_20250518
["timestamp","ask_amount","ask_price","bid_price","bid_amount"]
[1747595191432,6.0880265,2464.7,2463.3,4.05945004]
[1747595191433,4.05865203,2463.9,2463.3,4.05945004]
[1747595191768,4.05856528,2464.0,2463.4,24.70735195]
[1747595191973,4.05856528,2464.0,2463.5,12.70326468]
[1747595192462,4.0587093,2463.9,2463.5,8.644]
[1747595192662,4.05794749,2464.3,2463.5,8.644]
[1747595192849,12.05817555,2464.2,2463.6,4.09957318]
[1747595193050,4.0583223,2464.1,2463.7,10.34027096]
[1747595193369,6.85463308,2464.7,2463.7,10.34027096]
[1747595193539,4.05754086,2464.6,2464.0,4.05834744]
[1747595193732,4.05771938,2464.5,2464.1,8.643]
[1747595193939,4.05794358,2464.4,2464.2,8.658]
[1747595194154,4.05794358,2464.4,2464.3,17.533]
[1747595194550,2.03071318,2464.7,2464.3,17.533]
[1747595194551,6.08806243,2464.7,2464.3,18.3465]
[1747595194755,4.05721075,2464.8,2464.3,18.3465]
[1747595195167,4.05732255,2464.7,2464.3,18.3465]
[1747595195672,4.0570737,2464.9,2464.3,22.40435141]
[1747595195840,4.0570737,2464.9,2464.4,7.78340498]
[1747595196038,4.0570737,2464.9,2464.4,3.68505349]
[1747595196238,4.05736958,2464.7,2464.4,3.68505349]
[1747595196435,0.7923,2465.9,2464.5,0.8135]
[1747595196743,0.7923,2465.9,2465.0,4.05675225]
[1747595196962,4.05630435,2465.3,2465.1,17.297]
[1747595197269,4.05630146,2465.3,2465.2,17.528]
[1747595197567,12.05630146,2465.3,2465.2,17.528]
[1747595197869,12.84860146,2465.3,2465.2,26.183]
[1747595198030,12.84860146,2465.3,2465.2,17.528]
[1747595199943,4.05745354,2464.6,2464.5,17.528]
[1747595200130,4.05745354,2464.6,2464.5,26.162]
[1747595201268,4.05745354,2464.6,2464.5,26.161]
[1747595201474,12.05745354,2464.6,2464.5,17.528]
[1747595201767,12.05745354,2464.6,2464.5,26.161]
[1747595203667,12.05745354,2464.6,2464.5,17.528]
[1747595205844,12.05761817,2464.5,2464.4,8.632]
[1747595206039,12.60761817,2464.5,2464.4,8.632]
[1747595206239,12.05761817,2464.5,2464.4,8.632]
[1747595213187,0.8171,2465.3,2464.5,0.8019]
[1747595213375,4.05730945,2464.7,2464.5,0.8019]
[1747595213576,4.05730945,2464.7,2464.6,0.94339]
[1747595213772,4.05646196,2465.3,2464.6,0.94339]
[1747595214082,4.05597241,2465.5,2464.7,17.523]
[1747595214284,4.05712431,2464.8,2464.7,17.523]
[1747595214586,4.05677019,2465.1,2464.7,17.523]
[1747595214885,4.05567227,2465.7,2464.8,4.085739]
[1747595215081,4.05567227,2465.7,2464.9,8.631]
[1747595215285,4.0557458,2465.7,2465.1,4.85840733]
[1747595215475,4.05625866,2465.4,2465.2,8.62]
[1747595215670,4.0549856,2466.1,2465.1,0.8019]
[1747595215874,4.056466,2465.2,2465.1,10.07709]
[1747595216071,4.056466,2465.2,2465.1,18.70809]
[1747595216386,4.056466,2465.2,2465.1,10.08809]
[1747595216587,4.056466,2465.2,2465.1,9.28619]
[1747595217454,4.056466,2465.2,2465.1,0.65519]
[1747595217655,4.056466,2465.2,2465.1,9.28619]
[1747595218052,4.056466,2465.2,2465.1,0.65519]
[1747595218307,4.056466,2465.2,2465.1,9.28519]
[1747595218503,4.05632618,2465.3,2464.8,3.283839]
[1747595218504,4.05679513,2465.0,2464.8,3.283839]
[1747595218666,4.05679513,2465.0,2464.9,8.63]
[1747595220560,4.05728891,2464.7,2464.6,23.269]
[1747595220763,4.05728891,2464.7,2464.6,40.74074407]
[1747595220957,4.05728891,2464.7,2464.6,23.49574407]
[1747595221169,4.05728891,2464.7,2464.6,43.17050848]
[1747595221578,4.05728891,2464.7,2464.6,25.69876441]
[1747595221763,4.05728891,2464.7,2464.6,31.898]
[1747595221963,4.05723753,2464.8,2464.6,31.898]
[1747595222179,4.05724834,2464.8,2464.6,31.898]
[1747595222376,4.05728891,2464.7,2464.6,32.28516637]
[1747595222586,4.05728891,2464.7,2464.6,36.16647592]
[1747595222783,8.0,2465.4,2464.6,36.16647592]
[1747595222964,4.05613693,2465.4,2464.6,36.16647592]
[1747595223175,4.05728891,2464.7,2464.6,36.16647592]
[1747595223771,4.05728891,2464.7,2464.6,26.53516637]
[1747595224194,4.05728891,2464.7,2464.6,17.90616637]
[1747595224402,12.05728891,2464.7,2464.6,26.53516637]
[1747595224770,12.60728891,2464.7,2464.6,17.90616637]
[1747595225125,1.3427,2464.7,2464.6,0.38716637]
[1747595225421,1.3427,2464.7,2464.1,8.629]
[1747595225422,4.05811216,2464.2,2464.1,8.629]
[1747595227708,0.7927,2465.2,2464.1,9.4085]
[1747595227912,4.05761407,2464.6,2464.1,15.1585]
[1747595228083,4.05655275,2465.2,2464.3,0.7795]
[1747595228286,4.05745682,2464.6,2464.4,0.87795]
[1747595228479,4.05745682,2464.6,2464.5,8.611]
[1747595228909,4.05761817,2464.5,2464.4,0.87795]
[1747595229214,4.05761817,2464.5,2464.4,9.50795]
[1747595231292,4.05761817,2464.5,2464.4,0.87795]
[1747595231493,4.05778282,2464.4,2464.3,5.75]
[1747595231692,4.05778282,2464.4,2464.3,14.36]
[1747595232075,4.05778282,2464.4,2464.3,5.75]
[1747595232271,4.05844155,2464.0,2463.9,17.517]
[1747595232497,4.05844155,2464.0,2463.9,26.127]
[1747595232716,4.91248073,2464.0,2463.9,17.517]
[1747595232888,4.87194155,2464.0,2463.9,17.517]
[1747595233273,4.87194155,2464.0,2463.6,0.48461925]
[1747595233577,4.05893574,2463.7,2463.6,0.48461925]
[1747595233777,4.09947492,2463.7,2463.6,0.48461925]
[1747595234011,5.41337492,2463.7,2463.6,0.48461925]
[1747595234198,18.02076995,2463.7,2463.6,0.48461925]
[1747595234412,17.98023077,2463.7,2463.6,0.48461925]
[1747595235923,17.98023077,2463.7,2463.0,8.61]
[1747595235924,4.05992448,2463.1,2463.0,8.61]
[1747595236217,4.05992448,2463.1,2463.0,0.33892919]
[1747595236419,4.05992448,2463.1,2463.0,8.95092919]
[1747595237096,4.05992448,2463.1,2463.0,9.84602211]
[1747595237488,4.05970028,2463.3,2463.0,10.64672211]
[1747595237690,4.05959485,2463.3,2463.0,10.64672211]
[1747595237914,4.05976971,2463.2,2463.0,19.25472211]
[1747595238116,4.05976971,2463.2,2463.0,25.00472211]
[1747595238301,4.05976971,2463.2,2463.1,2.50047221]
[1747595239522,4.05984227,2463.2,2463.1,8.613]
[1747595239718,4.05967303,2463.3,2463.1,8.613]
[1747595239908,12.05895702,2463.7,2463.1,8.613]
[1747595240110,4.82261039,2463.9,2463.1,8.613]
[1747595240337,4.05937713,2463.5,2463.2,0.8412931]
[1747595240520,4.05910442,2463.6,2463.3,1.80612931]
[1747595240719,4.05827685,2464.1,2463.3,7.55612931]
[1747595241042,4.05943005,2463.4,2463.3,1.80612931]
[1747595241206,4.05978408,2463.2,2463.0,0.89509292]
[1747595241406,4.05978408,2463.2,2463.1,8.613]
[1747595244447,12.05978408,2463.2,2463.1,8.613]
[1747595244647,12.05978408,2463.2,2462.6,18.3207]
[1747595244648,4.06058391,2462.7,2462.6,17.52]
[1747595244822,4.06058391,2462.7,2462.6,26.133]
[1747595245857,4.06157345,2462.1,2462.0,0.7656]
[1747595246153,4.06140849,2462.2,2462.1,8.614]
[1747595246519,4.06140849,2462.2,2462.1,8.95305308]
[1747595246721,12.10194767,2462.2,2462.1,0.33905308]
[1747595247019,12.06140849,2462.2,2462.1,8.95305308]
[1747595247718,12.06140849,2462.2,2462.1,8.614]
[1747595248652,4.0620684,2461.8,2461.5,8.615]
[1747595248855,4.0620684,2461.8,2461.0,17.531]
[1747595248856,4.06305867,2461.2,2461.0,17.531]
[1747595249037,4.06322376,2461.1,2461.0,17.531]
[1747595249242,4.06322376,2461.1,2461.0,26.146]
[1747595249630,4.06322376,2461.1,2461.0,17.531]
[1747595249829,12.06322376,2461.1,2461.0,17.531]
[1747595250866,4.06315775,2461.2,2461.0,20.96]
[1747595251046,4.06322376,2461.1,2461.0,20.96]
[1747595251257,4.06322376,2461.1,2461.0,17.531]
[1747595251556,4.06322376,2461.1,2461.0,26.148]
[1747595251768,12.06322376,2461.1,2461.0,17.531]
[1747595251933,4.06437977,2460.4,2460.3,5.75]
[1747595252132,4.06437977,2460.4,2460.3,8.617]
[1747595253352,4.06454497,2460.3,2460.2,17.535]
[1747595253564,4.06454497,2460.3,2460.2,26.152]
[1747595255164,8.0,2460.9,2460.2,28.7672]
[1747595255340,4.06421309,2460.6,2460.3,0.787]
[1747595255752,4.06424763,2460.5,2460.3,0.787]
[1747595255965,4.06454497,2460.3,2460.2,28.7672]
[1747595256333,4.06427363,2460.5,2460.2,28.7672]
[1747595256663,4.06439519,2460.4,2460.2,28.7672]
[1747595257160,4.06429768,2460.5,2460.2,28.7672]
[1747595257560,4.06425475,2460.5,2460.2,28.7672]
[1747595257763,4.06410322,2460.6,2460.2,28.7672]
[1747595258072,4.06366528,2460.9,2460.4,0.787]
[1747595258274,4.06421459,2460.5,2460.3,5.75]
[1747595258451,4.06454497,2460.3,2460.2,26.141]
[1747595258646,4.06454497,2460.3,2460.2,26.156]
[1747595259577,4.06603236,2459.4,2459.3,17.542]
[1747595259777,4.06603236,2459.4,2459.3,26.163]
[1747595260957,4.06498096,2460.1,2459.3,26.163]
[1747595261280,0.8098,2460.6,2459.4,0.787]
[1747595261460,4.06470845,2460.3,2459.7,4.06545273]
[1747595261793,4.06470845,2460.3,2459.8,8.606]
[1747595261982,8.8098,2460.6,2459.8,8.606]
[1747595261983,4.0652059,2459.9,2459.8,8.606]
[1747595262147,0.8098,2460.6,2459.8,8.606]
[1747595262484,8.0,2460.5,2459.8,8.606]
[1747595262683,4.06492285,2460.1,2459.8,11.30875743]
[1747595263287,8.04053918,2460.4,2459.6,5.75]
[1747595263449,4.0654635,2459.8,2459.7,8.607]
[1747595264564,4.06506047,2460.0,2459.7,8.607]
[1747595264769,8.0,2460.3,2459.7,8.607]
[1747595264953,4.06514617,2460.0,2459.7,8.607]
[1747595265164,4.06521996,2459.9,2459.7,8.607]
[1747595265993,4.87393837,2460.6,2459.7,10.1214]
[1747595266155,0.7956,2461.0,2459.8,6.5586]
[1747595266351,4.06439899,2460.4,2459.9,12.67008115]
[1747595266559,4.85900239,2461.0,2460.0,9.81495686]
[1747595266754,4.06371911,2460.8,2460.1,2.24851371]
[1747595266958,4.06454497,2460.3,2460.2,8.608]
[1747595267192,4.06471018,2460.2,2459.3,17.542]
[1747595267405,13.46526115,2460.3,2459.6,8.608]
[1747595267570,4.06534268,2459.9,2459.6,8.608]
[1747595267771,8.0,2460.2,2459.6,8.608]
[1747595268604,8.0,2460.1,2459.6,8.608]
[1747595268776,4.06544138,2459.8,2459.6,8.608]
[1747595268973,4.06553644,2459.7,2459.6,8.608]
[1747595269179,4.06544788,2459.8,2459.6,8.608]
[1747595270009,4.06553644,2459.7,2459.6,8.608]
[1747595270720,4.06544113,2459.8,2459.6,8.608]
[1747595272057,4.06530048,2459.9,2459.6,8.608]
[1747595272261,4.06537693,2459.8,2459.6,9.87540311]
[1747595272896,4.06471995,2460.2,2459.6,9.87540311]
[1747595273059,4.06553644,2459.7,2459.6,8.608]
[1747595273986,4.06471995,2460.2,2459.4,5.75]
[1747595274185,4.06553644,2459.7,2459.6,8.609]
[1747595274775,4.06468228,2460.3,2459.8,4.06537116]
[1747595274988,4.06462438,2460.3,2459.9,5.75]
[1747595275192,4.06398066,2460.7,2460.2,4.06470909]
[1747595275400,4.06398066,2460.7,2460.3,34.765]
[1747595275561,4.06405687,2460.6,2460.4,3.88130955]
[1747595275767,4.06405482,2460.6,2460.4,9.63130955]
[1747595276596,4.06374573,2460.8,2460.4,9.63130955]
[1747595276895,4.06363692,2460.9,2460.5,0.8214]
[1747595277115,4.06352317,2461.0,2460.6,1.45170852]
[1747595277316,4.06357875,2460.9,2460.6,7.20170852]
[1747595277732,4.06334317,2461.1,2460.6,7.20170852]
[1747595277890,4.06350259,2461.0,2460.6,7.20170852]
[1747595278072,4.06365779,2460.9,2460.7,0.80231085]
[1747595278272,4.06365779,2460.9,2460.8,8.609]
[1747595278672,4.06347327,2461.0,2460.8,8.609]
[1747595278873,4.06355398,2460.9,2460.8,8.609]
[1747595279711,4.06330319,2461.1,2460.8,8.609]
[1747595280008,4.06330319,2461.1,2460.9,1.51613109]
[1747595280305,4.06337452,2461.1,2460.9,1.51613109]
[1747595280502,7.30726532,2461.3,2460.8,8.609]
[1747595280902,4.06324316,2461.1,2460.8,8.609]
[1747595281225,4.06324316,2461.1,2460.9,0.38776034]
[1747595281819,4.06338886,2461.0,2460.9,0.38776034]
[1747595282309,4.06329594,2461.1,2460.9,0.38776034]
[1747595282506,4.06329594,2461.1,2460.9,2.41490712]
[1747595283012,11.37028635,2461.3,2461.0,0.7815]
[1747595283013,4.06317788,2461.2,2461.0,0.7815]
[1747595283477,4.06322376,2461.1,2461.0,0.7815]
[1747595283872,0.7866,2461.8,2461.0,0.82213014]
[1747595284079,4.0627649,2461.4,2461.1,5.75]
[1747595284279,4.0627649,2461.4,2461.2,18.20015]
[1747595284280,4.06289359,2461.3,2461.2,18.20015]
[1747595284520,4.10343277,2461.3,2461.2,31.904]
[1747595284690,4.81389359,2461.3,2461.2,31.904]
[1747595285376,4.81389359,2461.3,2461.2,14.357]
[1747595285699,4.81389359,2461.3,2461.2,5.75]
[1747595285877,4.85443277,2461.3,2461.2,5.75]
[1747595286077,4.81389359,2461.3,2461.2,5.75]
[1747595286287,4.06289359,2461.3,2461.2,5.75]
[1747595286506,4.81389359,2461.3,2461.2,5.75]
[1747595286917,4.06338886,2461.0,2460.9,8.607]
[1747595288242,4.06338886,2461.0,2460.5,17.547]
[1747595288398,4.06338886,2461.0,2460.9,8.607]
[1747595289039,4.06404941,2460.6,2460.5,17.547]
[1747595289342,4.06421459,2460.5,2460.4,8.607]
[1747595289535,12.06436865,2460.5,2460.2,8.607]
[1747595289942,4.06454497,2460.3,2460.2,8.607]
[1747595290836,4.06416652,2460.6,2460.2,9.4677]
[1747595291038,4.06409377,2460.6,2460.2,9.4677]
[1747595291217,4.06393009,2460.7,2460.3,0.04063981]
[1747595291418,4.06393009,2460.7,2460.2,19.28227853]
[1747595291852,4.06395213,2460.7,2460.2,19.28227853]
[1747595292005,4.06395213,2460.7,2460.3,2.86526785]
[1747595292205,4.06421459,2460.5,2460.4,8.594]
[1747595292904,4.06400384,2460.7,2460.4,8.594]
[1747595293107,8.7624,2461.3,2460.4,8.594]
[1747595293301,0.7624,2461.3,2460.6,0.7764]
[1747595293536,4.063345,2461.1,2460.7,23.297]
[1747595293839,4.06355398,2460.9,2460.8,2.81373611]
[1747595294211,4.06355398,2460.9,2460.8,11.40773611]
[1747595294617,4.06344754,2461.0,2460.8,11.40773611]
[1747595294818,4.06355398,2460.9,2460.8,11.40773611]
[1747595296644,12.6542373,2461.7,2460.8,11.40773611]
[1747595296645,12.8248351,2461.6,2460.8,17.15773611]
[1747595296846,4.06338886,2461.0,2460.9,3.47047361]
[1747595298651,4.06311794,2461.2,2460.9,3.47047361]
[1747595299228,4.06338471,2461.1,2460.9,3.47047361]
[1747595299633,4.06338886,2461.0,2460.9,3.47047361]
[1747595300355,4.06264352,2461.5,2461.0,4.83867476]
[1747595300562,4.06275241,2461.4,2461.1,7.56226996]
[1747595301054,9.339,2462.1,2461.1,7.56226996]
[1747595301055,4.06298945,2461.3,2461.1,7.56226996]
[1747595301259,4.06298945,2461.3,2461.2,5.75]
[1747595301447,4.06298945,2461.3,2461.2,8.593]
[1747595301955,4.06371911,2460.8,2460.7,17.547]
[1747595303470,0.751,2460.7,2460.2,0.48461925]
[1747595303637,12.81554497,2460.3,2460.2,0.48461925]
[1747595303841,4.06504065,2460.0,2459.9,0.48461925]
[1747595304156,4.06504065,2460.0,2459.9,0.82397556]
[1747595304537,4.06504065,2460.0,2459.9,1.83016644]
[1747595305125,4.06504065,2460.0,2459.9,0.82397556]
[1747595306356,4.06504065,2460.0,2459.9,0.48461925]
[1747595307054,0.7607,2460.6,2459.9,0.48461925]
[1747595307255,4.06504065,2460.0,2459.8,9.4034]
[1747595307565,4.06504065,2460.0,2459.8,8.594]
[1747595307566,4.0652059,2459.9,2459.8,8.594]
[1747595307766,4.0652059,2459.9,2459.8,10.312]
[1747595308371,4.0652059,2459.9,2459.8,1.718]
[1747595308529,4.0650908,2460.0,2459.5,0.8094]
[1747595308727,4.06549824,2459.8,2459.6,8.594]
[1747595309238,4.06553644,2459.7,2459.6,8.594]
[1747595309424,4.06545514,2459.8,2459.6,8.594]
[1747595309859,4.06553644,2459.7,2459.6,8.594]
[1747595310056,4.06553644,2459.7,2459.6,10.96784]
[1747595311559,4.06522353,2459.9,2459.6,10.96784]
[1747595311759,4.06553644,2459.7,2459.6,10.96784]
[1747595313259,4.06544259,2459.8,2459.6,10.96784]
[1747595313664,13.45042523,2460.5,2459.7,4.06540994]
[1747595313665,4.06454171,2460.4,2459.7,4.06540994]
[1747595313874,4.06366952,2460.9,2459.9,4.06518618]
[1747595314165,4.06367606,2460.9,2460.3,4.06442377]
[1747595314327,4.06272852,2461.4,2460.5,4.06408149]
[1747595314524,4.06289359,2461.3,2460.6,6.5785]
[1747595314727,4.06377491,2460.8,2460.6,6.5785]
[1747595314938,4.06371911,2460.8,2460.7,7.26625]
[1747595315660,4.06362356,2460.9,2460.7,7.26625]
[1747595315967,4.06371911,2460.8,2460.7,7.26625]
[1747595316162,4.06371911,2460.8,2460.7,1.51625]
[1747595316331,4.06359469,2460.9,2460.7,1.51625]
[1747595316533,4.06359469,2460.9,2460.8,0.809475]
[1747595318469,4.06239952,2461.6,2460.8,0.809475]
[1747595318470,4.06241897,2461.6,2460.8,6.559475]
[1747595318685,4.06352141,2461.0,2460.9,8.594]
[1747595319666,4.06330955,2461.1,2460.9,8.594]
[1747595320871,4.06338886,2461.0,2460.9,8.594]
[1747595321371,4.06338886,2461.0,2460.9,11.1188725]
[1747595322888,4.0633036,2461.1,2460.9,11.1188725]
[1747595323038,4.06338886,2461.0,2460.9,11.1188725]
[1747595323761,4.06355398,2460.9,2460.8,0.809475]
[1747595323964,4.06355398,2460.9,2460.8,9.388475]
[1747595324342,4.06350697,2461.0,2460.8,9.388475]
[1747595324777,4.06355398,2460.9,2460.8,9.388475]
[1747595325256,4.82130419,2461.2,2460.8,9.388475]
[1747595325462,4.06241193,2461.6,2460.9,2.3715475]
[1747595325681,4.06326866,2461.1,2460.9,2.3715475]
[1747595326086,4.06338886,2461.0,2460.9,2.3715475]
[1747595326279,4.06338886,2461.0,2460.8,15.138475]
[1747595326682,4.06355398,2460.9,2460.8,15.138475]
[1747595327189,4.06347987,2461.0,2460.8,15.138475]
[1747595327386,4.06355398,2460.9,2460.8,15.138475]
[1747595328296,0.7974,2461.7,2460.9,4.86962842]
[1747595328454,0.7974,2461.7,2461.0,7.75081034]
[1747595328776,4.06276032,2461.4,2461.0,7.75081034]
[1747595328976,4.06263357,2461.5,2461.0,11.81415691]
[1747595329180,4.06267779,2461.5,2461.0,7.75081034]
[1747595329400,4.0619034,2461.9,2461.1,1.26203279]
[1747595329583,4.0622688,2461.7,2461.1,5.32524241]
[1747595329890,4.06256058,2461.6,2461.1,5.32523467]
[1747595330095,4.06256058,2461.6,2461.1,1.26203279]
[1747595330392,4.0624566,2461.6,2461.2,8.574]
[1747595330592,4.06256719,2461.5,2461.3,27.5129212]
[1747595331158,4.06193291,2461.9,2461.3,27.5129212]
[1747595331361,4.06272852,2461.4,2461.3,27.5129212]
[1747595331761,4.06272852,2461.4,2461.3,26.123]
[1747595333207,4.06263882,2461.5,2461.3,26.123]
[1747595333363,4.06249029,2461.6,2461.3,26.123]
[1747595333699,4.06258227,2461.5,2461.3,26.123]
[1747595334684,0.8325,2461.8,2461.3,26.123]
[1747595334887,4.062718,2461.5,2461.3,30.00430955]
[1747595336702,4.06272852,2461.4,2461.3,30.00430955]
[1747595337203,4.06264052,2461.5,2461.3,30.00430955]
[1747595338001,4.06213292,2461.8,2461.4,6.5025]
[1747595338185,8.59682132,2462.7,2461.5,9.40068096]
[1747595338186,4.06182324,2462.0,2461.5,9.40068096]
[1747595338389,4.06199616,2461.9,2461.5,9.40068096]
[1747595338585,4.06109405,2462.4,2461.6,0.0406173]
[1747595338899,4.06166449,2462.1,2461.7,14.318]
[1747595339099,0.8251,2462.6,2461.9,0.8046]
[1747595339419,4.06160436,2462.1,2461.9,0.8046]
[1747595339978,0.8251,2462.6,2461.9,0.8046]
[1747595340179,4.06173842,2462.0,2461.9,0.8046]
[1747595340382,4.06173842,2462.0,2461.9,8.577]
[1747595340704,4.06173842,2462.0,2461.9,10.8664]
[1747595341110,0.8251,2462.6,2461.9,2.2894]
[1747595341273,4.06097421,2462.5,2462.1,0.7576]
[1747595341471,4.06105836,2462.5,2462.2,17.541]
[1747595341679,4.06124355,2462.3,2462.2,17.541]
[1747595341878,4.06041903,2462.8,2462.2,17.541]
[1747595342304,4.06120085,2462.4,2462.2,17.541]
[1747595342477,4.06120085,2462.4,2462.3,2.40486]
[1747595343710,4.06120085,2462.4,2462.3,8.15486]
[1747595343900,4.06120085,2462.4,2462.3,14.325]
[1747595345490,4.86574355,2462.3,2461.4,5.75]
[1747595345795,4.06198132,2461.9,2461.5,8.575]
[1747595346186,4.06200102,2461.9,2461.6,8.575]
[1747595346386,4.06213323,2461.8,2461.4,5.75]
[1747595346720,12.06201152,2461.9,2461.4,3.12321958]
[1747595346892,0.8045,2462.1,2461.5,8.575]
[1747595347091,0.79373789,2462.1,2461.5,8.575]
[1747595347930,0.79373789,2462.1,2461.4,3.12321958]
[1747595348094,0.55,2462.2,2461.6,8.575]
[1747595348297,8.55,2462.0,2461.7,8.575]
[1747595348487,8.0,2462.0,2461.7,8.575]
[1747595349219,12.0620684,2461.8,2461.7,8.575]
[1747595350016,12.8665684,2461.8,2461.7,8.575]
[1747595352308,4.0620684,2461.8,2461.7,8.575]
[1747595352618,4.0620684,2461.8,2461.7,9.4325]
[1747595353339,4.0622622,2461.7,2461.3,17.538]
[1747595353638,4.06256347,2461.5,2461.4,8.559]
[1747595355183,4.06246194,2461.6,2461.4,8.559]
[1747595355433,4.06210193,2461.8,2461.5,0.7606]
[1747595355633,4.06192947,2461.9,2461.6,8.557]
[1747595355921,4.0620684,2461.8,2461.7,0.93176]
[1747595356099,4.0620684,2461.8,2461.7,17.115]
[1747595356417,0.7952,2462.2,2461.3,17.538]
[1747595356620,4.06264837,2461.5,2461.4,8.559]
[1747595357625,4.06242821,2461.6,2461.4,8.559]
[1747595358410,4.06198963,2461.9,2461.5,0.7606]
[1747595358722,4.06190052,2462.0,2461.6,1.33823082]
[1747595359226,4.06200328,2461.9,2461.6,1.33823082]
[1747595359383,4.0621119,2461.8,2461.6,1.33823082]
[1747595359585,4.06197293,2461.9,2461.7,17.113]
[1747595360189,4.0613568,2462.3,2461.8,0.7639]
[1747595360389,4.06114398,2462.4,2461.8,0.7639]
[1747595360626,0.7941,2463.1,2462.0,8.7639]
[1747595360800,0.7941,2463.3,2462.5,0.7639]
[1747595361123,0.7941,2463.3,2462.6,34.69360109]
[1747595361427,4.05991005,2463.2,2462.6,38.71364379]
[1747595361931,4.05976763,2463.2,2462.7,4.06049393]
[1747595362223,4.05986365,2463.2,2462.8,3.87134939]
[1747595363026,4.06004719,2463.1,2462.8,3.87134939]
[1747595364464,4.05912027,2463.6,2462.8,3.87134939]
[1747595364745,4.05992626,2463.1,2462.8,3.87134939]
[1747595365542,8.0,2463.7,2462.8,7.93170385]
[1747595365746,4.05943484,2463.4,2462.9,1.55867039]
[1747595365919,0.7941,2463.9,2462.9,1.55867039]
[1747595366109,4.05893808,2463.7,2463.1,0.7655]
[1747595366314,4.05827685,2464.1,2463.2,17.64155295]
[1747595366541,4.0590816,2463.7,2463.2,17.64155295]
[1747595366850,4.0590816,2463.7,2463.2,21.70130568]
[1747595367350,4.05919337,2463.6,2463.2,17.64155295]
[1747595367513,4.05882232,2463.8,2463.2,17.64155295]
[1747595367514,4.05900023,2463.7,2463.2,17.64155295]
[1747595367712,4.05816027,2464.2,2463.5,4.0592071]
[1747595367924,4.05856716,2464.0,2463.6,17.535]
[1747595368106,4.05761817,2464.5,2463.8,0.7655]
[1747595368331,4.05778282,2464.4,2463.8,0.7655]
[1747595368533,0.7728,2465.1,2463.9,1.78685]
[1747595368733,4.05679513,2465.0,2464.0,4.09890599]
[1747595368937,4.05779519,2464.4,2464.1,0.7655]
[1747595369140,4.05794749,2464.3,2464.2,17.1]
[1747595369926,4.05779868,2464.4,2464.2,17.1]
[1747595369927,4.05785753,2464.4,2464.2,17.1]
[1747595370139,4.05778282,2464.4,2464.3,1.78655]
[1747595370936,4.05778282,2464.4,2464.3,10.34155]
[1747595372258,4.05778282,2464.4,2464.3,10.33955]
[1747595373162,4.05768653,2464.5,2464.3,10.33955]
[1747595373527,4.05753267,2464.6,2464.3,10.33955]
[1747595373727,4.05761817,2464.5,2464.4,1.888055]
[1747595373928,4.05761817,2464.5,2464.4,19.414055]
[1747595375035,4.05761817,2464.5,2464.4,36.504055]
[1747595375235,4.05761817,2464.5,2464.4,26.078]
[1747595375758,4.05761817,2464.5,2464.4,17.526]
[1747595375957,4.05761817,2464.5,2464.4,26.078]
[1747595376269,12.87095735,2464.5,2464.4,17.526]
[1747595376446,12.83041817,2464.5,2464.4,17.526]
[1747595376760,4.058771,2463.8,2463.7,17.526]
[1747595376939,4.058771,2463.8,2463.7,26.078]
[1747595377140,4.0585668,2464.0,2463.7,26.078]
[1747595377341,4.05753662,2464.6,2463.8,0.7655]
[1747595377641,4.05835841,2464.1,2463.9,8.43435]
[1747595377959,4.05835841,2464.1,2464.0,14.286]
[1747595379463,4.05816973,2464.2,2464.0,14.286]
[1747595379660,4.05827685,2464.1,2464.0,14.286]
[1747595380060,0.7728,2464.7,2464.0,22.836]
[1747595380359,4.05811216,2464.2,2464.1,8.302035]
[1747595380752,0.7728,2464.7,2464.1,8.302035]
[1747595381147,4.05811216,2464.2,2464.1,5.75]
[1747595381363,4.05827685,2464.1,2464.0,5.75]
[1747595381565,4.05827685,2464.1,2464.0,14.301]
[1747595382759,4.05814871,2464.2,2464.0,14.301]
[1747595382965,4.05801113,2464.3,2464.0,14.301]
[1747595383164,4.05801113,2464.3,2464.1,1.698535]
[1747595383754,4.05811216,2464.2,2464.1,1.698535]
[1747595383955,4.05764804,2464.5,2464.1,1.698535]
[1747595384152,4.05794749,2464.3,2464.2,5.75]
[1747595384349,4.05723808,2464.8,2464.2,5.75]
[1747595384546,4.05753913,2464.6,2464.3,15.7884535]
[1747595384734,0.8322,2465.4,2464.3,15.7884535]
[1747595384937,4.05687523,2465.0,2464.5,4.05760295]
[1747595385149,4.05695971,2464.9,2464.6,26.056]
[1747595385343,0.8322,2465.4,2464.6,26.056]
[1747595385566,0.8322,2465.4,2464.7,2.6056]
[1747595385734,4.05696971,2464.9,2464.7,8.3556]
[1747595385939,4.05696971,2464.9,2464.8,5.75]
[1747595386134,4.05696971,2464.9,2464.8,14.282]
[1747595386350,4.05696971,2464.9,2464.8,16.48952069]
[1747595387067,4.05696971,2464.9,2464.8,14.282]
[1747595387269,4.05696971,2464.9,2464.8,5.75]
[1747595387474,4.05696971,2464.9,2464.8,14.282]
[1747595388878,4.05696971,2464.9,2464.8,8.532]
[1747595390275,4.05728891,2464.7,2464.6,17.523]
[1747595390577,4.05728891,2464.7,2464.6,26.054]
[1747595391571,4.05728891,2464.7,2464.6,17.523]
[1747595391772,4.05728891,2464.7,2464.6,26.054]
[1747595395280,4.05728891,2464.7,2464.6,29.2344]
[1747595395471,4.05712497,2464.8,2464.6,29.2344]
[1747595395668,4.05728891,2464.7,2464.6,29.2344]
[1747595396247,4.05728891,2464.7,2464.6,17.523]
[1747595396446,4.05728891,2464.7,2464.6,26.054]
[1747595397008,4.05728891,2464.7,2464.6,17.523]
[1747595397291,4.83608891,2464.7,2464.6,26.054]
[1747595398158,4.05728891,2464.7,2464.6,26.054]
[1747595399463,4.05728891,2464.7,2464.6,28.6594]
[1747595400662,0.7788,2465.2,2464.6,28.6594]
[1747595400891,4.05728891,2464.7,2464.6,34.4094]
[1747595401319,4.05719556,2464.8,2464.6,34.4094]
[1747595401480,4.05728891,2464.7,2464.6,34.63683425]
[1747595403315,4.83608891,2464.7,2464.6,31.804]
[1747595403608,4.05728891,2464.7,2464.6,31.804]
[1747595404217,4.05728891,2464.7,2464.6,26.054]